[Event "December 19 Early 2023"]
[Site "https://www.chess.com"]
[Date "2023.12.19"]
[Round "10"]
[White "Vokhidov, Shamsiddin"]
[Black "Carlsen, Magnus"]
[Result "0-1"]
[Board "1"]
[TimeControl "180+1"]
[WhiteFideId "14204223"]
[BlackFideId "1503014"]
[WhiteElo "2588"]
[BlackElo "2887"]
[WhiteTeam "UZB"]
[BlackTeam "NOR"]
[WhiteClock "0:00:07"]
[BlackClock "0:00:58"]

1. e4 {[%clk 0:03:00]}  Nc6 {[%clk 0:02:59]} 2. Nf3 {[%clk 0:02:59]}  g6 {[%clk 0:02:51]} 3. d4 {[%clk 0:02:59]}  Bg7 {[%clk 0:02:51]} 4. Bc4 {[%clk 0:02:51]}  d6 {[%clk 0:02:48]} 5. O-O {[%clk 0:02:44]}  Nf6 {[%clk 0:02:45]} 6. Qe2 {[%clk 0:02:44]}  Bg4 {[%clk 0:02:45]} 7. c3 {[%clk 0:02:38]}  e5 {[%clk 0:02:45]} 8. Bb5 {[%clk 0:02:24]}  Nd7 {[%clk 0:02:44]} 9. Bxc6 {[%clk 0:02:03]}  bxc6 {[%clk 0:02:44]} 10. Rd1 {[%clk 0:02:04]}  O-O {[%clk 0:02:42]} 11. h3 {[%clk 0:02:03]}  Bxf3 {[%clk 0:02:41]} 12. Qxf3 {[%clk 0:02:04]}  Re8 {[%clk 0:02:38]} 13. Be3 {[%clk 0:01:54]}  Rb8 {[%clk 0:02:37]} 14. b3 {[%clk 0:01:51]}  a5 {[%clk 0:02:35]} 15. Nd2 {[%clk 0:01:47]}  exd4 {[%clk 0:02:35]} 16. cxd4 {[%clk 0:01:46]}  c5 {[%clk 0:02:19]} 17. Nc4 {[%clk 0:01:45]}  a4 {[%clk 0:02:19]} 18. Rab1 {[%clk 0:01:42]}  axb3 {[%clk 0:02:16]} 19. axb3 {[%clk 0:01:43]}  cxd4 {[%clk 0:02:14]} 20. Bxd4 {[%clk 0:01:44]}  Bxd4 {[%clk 0:02:13]} 21. Rxd4 {[%clk 0:01:45]}  Qe7 {[%clk 0:02:13]} 22. Qc3 {[%clk 0:01:40]}  Qf6 {[%clk 0:02:08]} 23. f3 {[%clk 0:01:35]}  Nc5 {[%clk 0:02:04]} 24. Nd2 {[%clk 0:01:20]}  Ne6 {[%clk 0:02:04]} 25. Rc4 {[%clk 0:01:15]}  Qxc3 {[%clk 0:02:03]} 26. Rxc3 {[%clk 0:01:14]}  Ra8 {[%clk 0:02:03]} 27. Nc4 {[%clk 0:01:10]}  Ra2 {[%clk 0:02:03]} 28. Rb2 {[%clk 0:01:09]}  Rxb2 {[%clk 0:02:02]} 29. Nxb2 {[%clk 0:01:10]}  Ra8 {[%clk 0:02:03]} 30. Nd3 {[%clk 0:01:06]}  Ra1+ {[%clk 0:01:59]} 31. Kf2 {[%clk 0:01:03]}  Ra2+ {[%clk 0:01:59]} 32. Kf1 {[%clk 0:01:04]}  Kg7 {[%clk 0:01:43]} 33. Nb4 {[%clk 0:01:03]}  Rb2 {[%clk 0:01:41]} 34. Nd3 {[%clk 0:00:56]}  Rb1+ {[%clk 0:01:39]} 35. Kf2 {[%clk 0:00:56]}  g5 {[%clk 0:01:40]} 36. b4 {[%clk 0:00:55]}  h5 {[%clk 0:01:38]} 37. g3 {[%clk 0:00:51]}  Rh1 {[%clk 0:01:20]} 38. e5 {[%clk 0:00:35]}  dxe5 {[%clk 0:01:14]} 39. Nxe5 {[%clk 0:00:36]}  Rh2+ {[%clk 0:01:05]} 40. Kg1 {[%clk 0:00:35]}  Re2 {[%clk 0:01:03]} 41. Nc4 {[%clk 0:00:33]}  Kg6 {[%clk 0:00:58]} 42. Ne3 {[%clk 0:00:31]}  Rb2 {[%clk 0:00:55]} 43. Nd5 {[%clk 0:00:31]}  Nd4 {[%clk 0:00:56]} 44. Kf1 {[%clk 0:00:23]}  c6 {[%clk 0:00:54]} 45. Ne7+ {[%clk 0:00:23]}  Kf6 {[%clk 0:00:54]} 46. Nxc6 {[%clk 0:00:24]}  Ne2 {[%clk 0:00:55]} 47. Rc5 {[%clk 0:00:17]}  Nxg3+ {[%clk 0:00:55]} 48. Kg1 {[%clk 0:00:18]}  Ne2+ {[%clk 0:00:55]} 49. Kf1 {[%clk 0:00:18]}  Nf4 {[%clk 0:00:56]} 50. h4 {[%clk 0:00:14]}  gxh4 {[%clk 0:00:56]} 51. Nd4 {[%clk 0:00:15]}  h3 {[%clk 0:00:56]} 52. Rf5+ {[%clk 0:00:14]}  Kg6 {[%clk 0:00:55]} 53. Rxf4 {[%clk 0:00:14]}  Rb1+ {[%clk 0:00:55]} 54. Kf2 {[%clk 0:00:09]}  h2 {[%clk 0:00:56]} 55. Rh4 {[%clk 0:00:09]}  h1=Q {[%clk 0:00:57]} 56. Rxh1 {[%clk 0:00:09]}  Rxh1 {[%clk 0:00:57]} 57. b5 {[%clk 0:00:09]}  Rb1 {[%clk 0:00:58]} 58. Ke3 {[%clk 0:00:09]}  h4 {[%clk 0:00:58]} 59. Kf4 {[%clk 0:00:09]}  Rb4 {[%clk 0:00:58]} 60. Ke3 {[%clk 0:00:07]}  h3 {[%clk 0:00:58]} 0-1

[Event "December 19 Early 2023"]
[Site "https://www.chess.com"]
[Date "2023.12.19"]
[Round "10"]
[White "Nakamura, Hikaru"]
[Black "Kovalev, Vladislav"]
[Result "1-0"]
[Board "2"]
[TimeControl "180+1"]
[WhiteFideId "2016192"]
[BlackFideId "13504398"]
[WhiteElo "2874"]
[BlackElo "2539"]
[WhiteTeam "USA"]
[BlackTeam "FID"]
[WhiteClock "0:00:09"]
[BlackClock "0:00:03"]

1. e4 {[%clk 0:03:00]}  e5 {[%clk 0:03:00]} 2. Bc4 {[%clk 0:03:00]}  Nf6 {[%clk 0:03:00]} 3. d3 {[%clk 0:03:00]}  c6 {[%clk 0:03:00]} 4. Nf3 {[%clk 0:03:00]}  d5 {[%clk 0:03:00]} 5. Bb3 {[%clk 0:03:01]}  Bd6 {[%clk 0:02:48]} 6. O-O {[%clk 0:02:47]}  O-O {[%clk 0:02:45]} 7. exd5 {[%clk 0:02:34]}  cxd5 {[%clk 0:02:33]} 8. Bg5 {[%clk 0:02:17]}  Be6 {[%clk 0:02:19]} 9. Nc3 {[%clk 0:02:14]}  d4 {[%clk 0:02:00]} 10. Ne4 {[%clk 0:01:40]}  Bxb3 {[%clk 0:01:57]} 11. Bxf6 {[%clk 0:01:36]}  gxf6 {[%clk 0:01:57]} 12. axb3 {[%clk 0:01:36]}  f5 {[%clk 0:01:52]} 13. Nfg5 {[%clk 0:00:32]}  f6 {[%clk 0:01:08]} 14. Ne6 {[%clk 0:00:32]}  Qe7 {[%clk 0:01:08]} 15. Nxd6 {[%clk 0:00:33]}  Qxe6 {[%clk 0:01:08]} 16. Nxb7 {[%clk 0:00:33]}  Qd5 {[%clk 0:00:47]} 17. Qf3 {[%clk 0:00:25]}  Qxf3 {[%clk 0:00:47]} 18. gxf3 {[%clk 0:00:25]}  Rc8 {[%clk 0:00:39]} 19. Rfc1 {[%clk 0:00:24]}  f4 {[%clk 0:00:35]} 20. c3 {[%clk 0:00:20]}  Nc6 {[%clk 0:00:31]} 21. b4 {[%clk 0:00:17]}  Kf8 {[%clk 0:00:15]} 22. Kf1 {[%clk 0:00:15]}  Ke7 {[%clk 0:00:15]} 23. Nc5 {[%clk 0:00:13]}  Rc7 {[%clk 0:00:12]} 24. Nb3 {[%clk 0:00:12]}  Rd8 {[%clk 0:00:10]} 25. cxd4 {[%clk 0:00:10]}  Rcc8 {[%clk 0:00:05]} 26. dxe5 {[%clk 0:00:09]}  Nxe5 {[%clk 0:00:06]} 27. Rxa7+ {[%clk 0:00:09]}  Kf8 {[%clk 0:00:06]} 28. Rxc8 {[%clk 0:00:09]}  Rxc8 {[%clk 0:00:07]} 29. Nc5 {[%clk 0:00:09]}  Nxf3 {[%clk 0:00:06]} 30. Rxh7 {[%clk 0:00:09]}  Ra8 {[%clk 0:00:03]} 31. Rh8+ {[%clk 0:00:09]} 1-0

[Event "December 19 Early 2023"]
[Site "https://www.chess.com"]
[Date "2023.12.19"]
[Round "10"]
[White "Suleymanli, Aydin"]
[Black "Bortnyk, Olexandr"]
[Result "0-1"]
[Board "3"]
[TimeControl "180+1"]
[WhiteFideId "13413937"]
[BlackFideId "14120828"]
[WhiteElo "2553"]
[BlackElo "2731"]
[WhiteTeam "AZE"]
[BlackTeam "UKR"]
[WhiteClock "0:00:01"]
[BlackClock "0:00:06"]

1. e4 {[%clk 0:03:00]}  Nf6 {[%clk 0:03:00]} 2. e5 {[%clk 0:02:58]}  Nd5 {[%clk 0:03:00]} 3. Nc3 {[%clk 0:02:59]}  Nxc3 {[%clk 0:02:59]} 4. dxc3 {[%clk 0:03:00]}  d6 {[%clk 0:03:00]} 5. Nf3 {[%clk 0:03:00]}  Nc6 {[%clk 0:03:00]} 6. Bb5 {[%clk 0:02:52]}  a6 {[%clk 0:03:00]} 7. Ba4 {[%clk 0:02:51]}  Bd7 {[%clk 0:02:36]} 8. exd6 {[%clk 0:02:27]}  exd6 {[%clk 0:02:27]} 9. O-O {[%clk 0:02:27]}  Be7 {[%clk 0:02:27]} 10. Re1 {[%clk 0:02:27]}  O-O {[%clk 0:02:26]} 11. Bf4 {[%clk 0:02:21]}  Bf6 {[%clk 0:02:24]} 12. Bb3 {[%clk 0:02:18]}  Ne7 {[%clk 0:02:05]} 13. Qd2 {[%clk 0:02:08]}  Ng6 {[%clk 0:02:02]} 14. Bg3 {[%clk 0:01:51]}  Bg4 {[%clk 0:01:58]} 15. Nd4 {[%clk 0:01:48]}  Qd7 {[%clk 0:01:09]} 16. h3 {[%clk 0:01:31]}  Bh5 {[%clk 0:01:10]} 17. Bh2 {[%clk 0:01:14]}  Rfe8 {[%clk 0:01:01]} 18. g4 {[%clk 0:00:54]}  Nh4 {[%clk 0:01:01]} 19. Bg3 {[%clk 0:00:27]}  Bxg4 {[%clk 0:00:52]} 20. Bxh4 {[%clk 0:00:14]}  Bxh4 {[%clk 0:00:39]} 21. Qf4 {[%clk 0:00:15]}  c5 {[%clk 0:00:35]} 22. hxg4 {[%clk 0:00:10]}  cxd4 {[%clk 0:00:34]} 23. cxd4 {[%clk 0:00:11]}  h6 {[%clk 0:00:27]} 24. Kg2 {[%clk 0:00:09]}  Bg5 {[%clk 0:00:26]} 25. Qf3 {[%clk 0:00:08]}  Rac8 {[%clk 0:00:23]} 26. c3 {[%clk 0:00:09]}  b5 {[%clk 0:00:17]} 27. a3 {[%clk 0:00:08]}  Rxe1 {[%clk 0:00:16]} 28. Rxe1 {[%clk 0:00:08]}  g6 {[%clk 0:00:17]} 29. Bd5 {[%clk 0:00:08]}  Kg7 {[%clk 0:00:17]} 30. Qg3 {[%clk 0:00:08]}  Qd8 {[%clk 0:00:11]} 31. Re4 {[%clk 0:00:06]}  a5 {[%clk 0:00:10]} 32. f4 {[%clk 0:00:05]}  Bh4 {[%clk 0:00:10]} 33. Qe3 {[%clk 0:00:05]}  b4 {[%clk 0:00:10]} 34. axb4 {[%clk 0:00:03]}  axb4 {[%clk 0:00:11]} 35. c4 {[%clk 0:00:04]}  Qf6 {[%clk 0:00:08]} 36. Kh3 {[%clk 0:00:04]}  b3 {[%clk 0:00:06]} 37. c5 {[%clk 0:00:03]}  h5 {[%clk 0:00:06]} 38. g5 {[%clk 0:00:03]}  Qf5+ {[%clk 0:00:07]} 39. Kh2 {[%clk 0:00:03]}  Qxd5 {[%clk 0:00:07]} 40. Re7 {[%clk 0:00:01]}  dxc5 {[%clk 0:00:07]} 41. dxc5 {[%clk 0:00:02]}  Qxc5 {[%clk 0:00:07]} 42. Qf3 {[%clk 0:00:01]}  Qf2+ {[%clk 0:00:06]} 0-1

[Event "December 19 Early 2023"]
[Site "https://www.chess.com"]
[Date "2023.12.19"]
[Round "10"]
[White "Sjugirov, Sanan"]
[Black "Le, Tuan Minh"]
[Result "0-1"]
[Board "6"]
[TimeControl "180+1"]
[WhiteFideId "4189302"]
[BlackFideId "12401153"]
[WhiteElo "2569"]
[BlackElo "2561"]
[WhiteTeam "HUN"]
[BlackTeam "VIE"]
[WhiteClock "0:00:00"]
[BlackClock "0:00:50"]

1. e4 {[%clk 0:03:00]}  e5 {[%clk 0:02:58]} 2. Nf3 {[%clk 0:03:01]}  Nc6 {[%clk 0:02:58]} 3. Bb5 {[%clk 0:03:01]}  a6 {[%clk 0:02:59]} 4. Ba4 {[%clk 0:03:02]}  Bc5 {[%clk 0:02:59]} 5. O-O {[%clk 0:03:02]}  Nge7 {[%clk 0:02:59]} 6. c3 {[%clk 0:03:02]}  Ng6 {[%clk 0:03:00]} 7. d4 {[%clk 0:03:02]}  Ba7 {[%clk 0:03:01]} 8. Re1 {[%clk 0:02:59]}  O-O {[%clk 0:02:58]} 9. h3 {[%clk 0:02:55]}  d6 {[%clk 0:02:54]} 10. Be3 {[%clk 0:02:54]}  Nce7 {[%clk 0:02:35]} 11. Bb3 {[%clk 0:02:45]}  exd4 {[%clk 0:02:24]} 12. cxd4 {[%clk 0:02:45]}  d5 {[%clk 0:02:19]} 13. e5 {[%clk 0:02:20]}  c6 {[%clk 0:02:16]} 14. Nc3 {[%clk 0:02:17]}  Nf5 {[%clk 0:02:07]} 15. Bc2 {[%clk 0:02:14]}  f6 {[%clk 0:02:05]} 16. exf6 {[%clk 0:02:12]}  Nxe3 {[%clk 0:02:02]} 17. fxe3 {[%clk 0:01:37]}  Qxf6 {[%clk 0:02:02]} 18. Rf1 {[%clk 0:01:37]}  Qe7 {[%clk 0:01:54]} 19. Qd2 {[%clk 0:01:32]}  Bf5 {[%clk 0:01:44]} 20. Rae1 {[%clk 0:01:24]}  Bxc2 {[%clk 0:01:36]} 21. Qxc2 {[%clk 0:01:25]}  Rae8 {[%clk 0:01:30]} 22. e4 {[%clk 0:01:23]}  Nh4 {[%clk 0:01:24]} 23. Qd2 {[%clk 0:00:36]}  Nxf3+ {[%clk 0:01:23]} 24. gxf3 {[%clk 0:00:23]}  Qh4 {[%clk 0:01:19]} 25. Kh2 {[%clk 0:00:20]}  Re6 {[%clk 0:01:14]} 26. Rd1 {[%clk 0:00:10]}  Rg6 {[%clk 0:00:57]} 27. Qf2 {[%clk 0:00:06]}  Qf4+ {[%clk 0:00:52]} 28. Kh1 {[%clk 0:00:06]}  Rg3 {[%clk 0:00:50]} 29. Qh2 {[%clk 0:00:00]}  Qh4 {[%clk 0:00:50]} 0-1

[Event "December 19 Early 2023"]
[Site "https://www.chess.com"]
[Date "2023.12.19"]
[Round "10"]
[White "Sarana, Alexey"]
[Black "Zakhartsov, Vladimir"]
[Result "1/2-1/2"]
[Board "8"]
[TimeControl "180+1"]
[WhiteFideId "24133795"]
[BlackFideId "4145097"]
[WhiteElo "2707"]
[BlackElo "2448"]
[WhiteTeam "SRB"]
[BlackTeam "RUS"]
[WhiteClock "0:00:01"]
[BlackClock "0:00:04"]

1. d4 {[%clk 0:03:00]}  Nf6 {[%clk 0:02:59]} 2. c4 {[%clk 0:02:59]}  g6 {[%clk 0:02:59]} 3. Nc3 {[%clk 0:03:00]}  d5 {[%clk 0:02:59]} 4. Bg5 {[%clk 0:02:59]}  Bg7 {[%clk 0:02:49]} 5. Bxf6 {[%clk 0:02:59]}  Bxf6 {[%clk 0:02:49]} 6. cxd5 {[%clk 0:03:00]}  c6 {[%clk 0:02:49]} 7. e4 {[%clk 0:02:59]}  cxd5 {[%clk 0:02:48]} 8. Bb5+ {[%clk 0:02:59]}  Bd7 {[%clk 0:02:43]} 9. Bxd7+ {[%clk 0:03:00]}  Qxd7 {[%clk 0:02:42]} 10. Nxd5 {[%clk 0:02:59]}  Bg7 {[%clk 0:02:40]} 11. Qf3 {[%clk 0:02:49]}  Nc6 {[%clk 0:02:35]} 12. Ne2 {[%clk 0:02:49]}  O-O {[%clk 0:02:17]} 13. O-O {[%clk 0:02:46]}  Qd8 {[%clk 0:01:43]} 14. Rfd1 {[%clk 0:02:33]}  e6 {[%clk 0:01:42]} 15. Ne3 {[%clk 0:02:25]}  Bxd4 {[%clk 0:01:36]} 16. Nc2 {[%clk 0:02:25]}  e5 {[%clk 0:01:35]} 17. Qb3 {[%clk 0:01:42]}  Qf6 {[%clk 0:01:25]} 18. Ncxd4 {[%clk 0:01:36]}  exd4 {[%clk 0:01:21]} 19. Rac1 {[%clk 0:01:32]}  Rab8 {[%clk 0:01:16]} 20. f3 {[%clk 0:01:31]}  Rfd8 {[%clk 0:01:15]} 21. Rd3 {[%clk 0:01:27]}  Rd7 {[%clk 0:01:14]} 22. Rcd1 {[%clk 0:01:26]}  Rbd8 {[%clk 0:01:14]} 23. R3d2 {[%clk 0:01:18]}  d3 {[%clk 0:01:10]} 24. Nc3 {[%clk 0:01:13]}  Nd4 {[%clk 0:01:09]} 25. Qc4 {[%clk 0:01:00]}  b5 {[%clk 0:00:19]} 26. Qc5 {[%clk 0:00:55]}  Ne2+ {[%clk 0:00:17]} 27. Kf1 {[%clk 0:00:37]}  Nxc3 {[%clk 0:00:15]} 28. Qxc3 {[%clk 0:00:37]}  Qd6 {[%clk 0:00:12]} 29. h3 {[%clk 0:00:31]}  h5 {[%clk 0:00:11]} 30. b4 {[%clk 0:00:30]}  a6 {[%clk 0:00:12]} 31. a3 {[%clk 0:00:30]}  Kh7 {[%clk 0:00:10]} 32. Kf2 {[%clk 0:00:21]}  Qb6+ {[%clk 0:00:09]} 33. Kg3 {[%clk 0:00:19]}  Qd6+ {[%clk 0:00:10]} 34. e5 {[%clk 0:00:18]}  Qd5 {[%clk 0:00:10]} 35. f4 {[%clk 0:00:17]}  Qe4 {[%clk 0:00:09]} 36. Rf1 {[%clk 0:00:12]}  Rd4 {[%clk 0:00:08]} 37. Kh2 {[%clk 0:00:11]}  Rc4 {[%clk 0:00:08]} 38. Qb3 {[%clk 0:00:09]}  Rd7 {[%clk 0:00:07]} 39. Rf3 {[%clk 0:00:09]}  Rcd4 {[%clk 0:00:06]} 40. Qc3 {[%clk 0:00:07]}  Kg7 {[%clk 0:00:06]} 41. e6 {[%clk 0:00:06]}  fxe6 {[%clk 0:00:04]} 42. Rdxd3 {[%clk 0:00:05]}  e5 {[%clk 0:00:04]} 43. Rde3 {[%clk 0:00:05]}  Qf5 {[%clk 0:00:03]} 44. Rxe5 {[%clk 0:00:05]}  Qf6 {[%clk 0:00:04]} 45. Qe3 {[%clk 0:00:05]}  Rd3 {[%clk 0:00:03]} 46. Qe4 {[%clk 0:00:06]}  Rxf3 {[%clk 0:00:03]} 47. Qxf3 {[%clk 0:00:07]}  Rf7 {[%clk 0:00:03]} 48. Re4 {[%clk 0:00:07]}  Qd6 {[%clk 0:00:04]} 49. Qe3 {[%clk 0:00:07]}  Qf6 {[%clk 0:00:03]} 50. Qg3 {[%clk 0:00:05]}  Qf5 {[%clk 0:00:03]} 51. Qc3+ {[%clk 0:00:05]}  Kh7 {[%clk 0:00:02]} 52. Qe3 {[%clk 0:00:05]}  h4 {[%clk 0:00:02]} 53. Qe1 {[%clk 0:00:05]}  Qf6 {[%clk 0:00:03]} 54. Qd2 {[%clk 0:00:05]}  Kg7 {[%clk 0:00:03]} 55. Qe3 {[%clk 0:00:05]}  Qf5 {[%clk 0:00:03]} 56. Rd4 {[%clk 0:00:05]}  Qf6 {[%clk 0:00:03]} 57. Qf2 {[%clk 0:00:04]}  Re7 {[%clk 0:00:02]} 58. Qd2 {[%clk 0:00:04]}  Rf7 {[%clk 0:00:03]} 59. Qc3 {[%clk 0:00:04]}  Kh7 {[%clk 0:00:03]} 60. Qe3 {[%clk 0:00:03]}  Re7 {[%clk 0:00:03]} 61. Re4 {[%clk 0:00:03]}  Rf7 {[%clk 0:00:03]} 62. Qe2 {[%clk 0:00:03]}  Qf5 {[%clk 0:00:04]} 63. Qe1 {[%clk 0:00:02]}  Qf6 {[%clk 0:00:04]} 64. Qe3 {[%clk 0:00:02]}  Qf5 {[%clk 0:00:04]} 65. Qf3 {[%clk 0:00:02]}  Qf6 {[%clk 0:00:04]} 66. Qg4 {[%clk 0:00:03]}  Kg7 {[%clk 0:00:04]} 67. Qe2 {[%clk 0:00:01]}  Qf5 {[%clk 0:00:04]} 68. Qd3 {[%clk 0:00:01]}  Kh7 {[%clk 0:00:04]} 69. Qd4 {[%clk 0:00:02]}  Rd7 {[%clk 0:00:03]} 70. Qe3 {[%clk 0:00:01]}  Rf7 {[%clk 0:00:04]} 1/2-1/2

[Event "December 19 Early 2023"]
[Site "https://www.chess.com"]
[Date "2023.12.19"]
[Round "10"]
[White "Rasulov, Vugar"]
[Black "Gabrielian, Artur"]
[Result "1-0"]
[Board "11"]
[TimeControl "180+1"]
[WhiteFideId "13402390"]
[BlackFideId "4131002"]
[WhiteElo "2517"]
[BlackElo "2441"]
[WhiteTeam "AZE"]
[BlackTeam "RUS"]
[WhiteClock "0:00:05"]
[BlackClock "0:00:00"]

1. d4 {[%clk 0:03:00]}  Nf6 {[%clk 0:02:59]} 2. c4 {[%clk 0:03:01]}  g6 {[%clk 0:02:57]} 3. Nf3 {[%clk 0:02:59]}  Bg7 {[%clk 0:02:57]} 4. e3 {[%clk 0:02:58]}  O-O {[%clk 0:02:57]} 5. Be2 {[%clk 0:02:59]}  d6 {[%clk 0:02:56]} 6. O-O {[%clk 0:02:59]}  c5 {[%clk 0:02:55]} 7. Nc3 {[%clk 0:02:55]}  Nc6 {[%clk 0:02:47]} 8. d5 {[%clk 0:02:52]}  Na5 {[%clk 0:02:47]} 9. e4 {[%clk 0:02:49]}  Bg4 {[%clk 0:02:46]} 10. Nd2 {[%clk 0:02:30]}  Bxe2 {[%clk 0:02:43]} 11. Qxe2 {[%clk 0:02:31]}  a6 {[%clk 0:02:39]} 12. e5 {[%clk 0:02:20]}  dxe5 {[%clk 0:02:32]} 13. Qxe5 {[%clk 0:02:20]}  b5 {[%clk 0:02:24]} 14. cxb5 {[%clk 0:02:16]}  axb5 {[%clk 0:02:24]} 15. Nxb5 {[%clk 0:02:10]}  Nxd5 {[%clk 0:02:19]} 16. Qe4 {[%clk 0:02:04]}  Rb8 {[%clk 0:02:17]} 17. a4 {[%clk 0:02:00]}  Nb4 {[%clk 0:02:16]} 18. Nf3 {[%clk 0:01:52]}  Nb3 {[%clk 0:02:00]} 19. Rb1 {[%clk 0:01:51]}  Qd3 {[%clk 0:01:51]} 20. Qxd3 {[%clk 0:01:45]}  Nxd3 {[%clk 0:01:52]} 21. Bg5 {[%clk 0:01:45]}  Nxb2 {[%clk 0:01:47]} 22. Bxe7 {[%clk 0:01:40]}  Rfe8 {[%clk 0:01:46]} 23. Bd6 {[%clk 0:01:40]}  Rbd8 {[%clk 0:01:24]} 24. Bc7 {[%clk 0:01:29]}  Ra8 {[%clk 0:01:19]} 25. a5 {[%clk 0:00:50]}  Nxa5 {[%clk 0:00:56]} 26. Bb6 {[%clk 0:00:50]}  Nac4 {[%clk 0:00:51]} 27. Bxc5 {[%clk 0:00:49]}  Ra5 {[%clk 0:00:43]} 28. Nd6 {[%clk 0:00:48]}  Nxd6 {[%clk 0:00:42]} 29. Bxd6 {[%clk 0:00:49]}  Nc4 {[%clk 0:00:42]} 30. Bf4 {[%clk 0:00:47]}  Rd5 {[%clk 0:00:29]} 31. Rbc1 {[%clk 0:00:45]}  Nd6 {[%clk 0:00:29]} 32. h3 {[%clk 0:00:41]}  h6 {[%clk 0:00:28]} 33. Bxd6 {[%clk 0:00:38]}  Rxd6 {[%clk 0:00:28]} 34. Rfe1 {[%clk 0:00:38]}  Rxe1+ {[%clk 0:00:28]} 35. Rxe1 {[%clk 0:00:39]}  Bf6 {[%clk 0:00:29]} 36. g3 {[%clk 0:00:39]}  Kg7 {[%clk 0:00:29]} 37. Kg2 {[%clk 0:00:39]}  Ra6 {[%clk 0:00:29]} 38. Re2 {[%clk 0:00:40]}  Rb6 {[%clk 0:00:28]} 39. Rc2 {[%clk 0:00:39]}  Rb2 {[%clk 0:00:28]} 40. Rc4 {[%clk 0:00:29]}  Ra2 {[%clk 0:00:27]} 41. h4 {[%clk 0:00:28]}  Bd8 {[%clk 0:00:26]} 42. Ne5 {[%clk 0:00:28]}  Bb6 {[%clk 0:00:25]} 43. Rf4 {[%clk 0:00:27]}  f5 {[%clk 0:00:21]} 44. Rf3 {[%clk 0:00:26]}  Bd4 {[%clk 0:00:20]} 45. Nc6 {[%clk 0:00:26]}  Bc5 {[%clk 0:00:19]} 46. h5 {[%clk 0:00:26]}  gxh5 {[%clk 0:00:18]} 47. Rxf5 {[%clk 0:00:27]}  Bb6 {[%clk 0:00:16]} 48. Ne7 {[%clk 0:00:21]}  Ra5 {[%clk 0:00:13]} 49. Rf3 {[%clk 0:00:19]}  Re5 {[%clk 0:00:12]} 50. Nf5+ {[%clk 0:00:19]}  Kg6 {[%clk 0:00:12]} 51. Nh4+ {[%clk 0:00:19]}  Kg7 {[%clk 0:00:13]} 52. Rb3 {[%clk 0:00:19]}  Bc5 {[%clk 0:00:12]} 53. Rb7+ {[%clk 0:00:17]}  Kg8 {[%clk 0:00:11]} 54. f4 {[%clk 0:00:14]}  Re2+ {[%clk 0:00:11]} 55. Kh3 {[%clk 0:00:15]}  Bg1 {[%clk 0:00:11]} 56. Nf3 {[%clk 0:00:15]}  Bc5 {[%clk 0:00:10]} 57. Rb5 {[%clk 0:00:12]}  Ba7 {[%clk 0:00:08]} 58. Rxh5 {[%clk 0:00:13]}  Kg7 {[%clk 0:00:07]} 59. Kg4 {[%clk 0:00:13]}  Ra2 {[%clk 0:00:05]} 60. Nh4 {[%clk 0:00:13]}  Bf2 {[%clk 0:00:04]} 61. Nf5+ {[%clk 0:00:13]}  Kg8 {[%clk 0:00:04]} 62. Rxh6 {[%clk 0:00:13]}  Ra3 {[%clk 0:00:04]} 63. Rh2 {[%clk 0:00:13]}  Bc5 {[%clk 0:00:04]} 64. Rc2 {[%clk 0:00:13]}  Bf8 {[%clk 0:00:04]} 65. Kg5 {[%clk 0:00:14]}  Ra6 {[%clk 0:00:03]} 66. g4 {[%clk 0:00:13]}  Kf7 {[%clk 0:00:03]} 67. Rc7+ {[%clk 0:00:13]}  Kg8 {[%clk 0:00:04]} 68. Kh5 {[%clk 0:00:10]}  Ra5 {[%clk 0:00:03]} 69. Rd7 {[%clk 0:00:09]}  Rb5 {[%clk 0:00:03]} 70. Kg5 {[%clk 0:00:08]}  Ra5 {[%clk 0:00:04]} 71. Rb7 {[%clk 0:00:08]}  Rc5 {[%clk 0:00:04]} 72. Ra7 {[%clk 0:00:08]}  Rb5 {[%clk 0:00:04]} 73. Ra6 {[%clk 0:00:08]}  Rc5 {[%clk 0:00:04]} 74. Kg6 {[%clk 0:00:08]}  Rc4 {[%clk 0:00:03]} 75. Ra8 {[%clk 0:00:05]}  Rxf4 {[%clk 0:00:03]} 76. g5 {[%clk 0:00:05]}  Rf1 {[%clk 0:00:02]} 77. Rc8 {[%clk 0:00:04]}  Rf2 {[%clk 0:00:02]} 78. Nh6+ {[%clk 0:00:04]}  Kh8 {[%clk 0:00:02]} 79. Re8 {[%clk 0:00:04]}  Rf1 {[%clk 0:00:02]} 80. Ng4 {[%clk 0:00:05]}  Kg8 {[%clk 0:00:00]} 81. Nf6+ {[%clk 0:00:05]} 1-0

[Event "December 19 Early 2023"]
[Site "https://www.chess.com"]
[Date "2023.12.19"]
[Round "10"]
[White "Shevchenko, Kirill"]
[Black "Boyer, Mahel"]
[Result "0-1"]
[Board "13"]
[TimeControl "180+1"]
[WhiteFideId "14129574"]
[BlackFideId "45102422"]
[WhiteElo "2603"]
[BlackElo "2449"]
[WhiteTeam "ROU"]
[BlackTeam "FRA"]
[WhiteClock "0:00:06"]
[BlackClock "0:00:02"]

1. e4 {[%clk 0:03:00]}  Nc6 {[%clk 0:03:00]} 2. d4 {[%clk 0:02:56]}  d5 {[%clk 0:03:00]} 3. Nc3 {[%clk 0:02:57]}  dxe4 {[%clk 0:03:00]} 4. d5 {[%clk 0:02:57]}  Nb8 {[%clk 0:03:01]} 5. Bf4 {[%clk 0:02:55]}  Nf6 {[%clk 0:03:01]} 6. Bc4 {[%clk 0:02:49]}  a6 {[%clk 0:03:00]} 7. Nge2 {[%clk 0:02:45]}  b5 {[%clk 0:02:54]} 8. Bb3 {[%clk 0:02:45]}  c5 {[%clk 0:02:55]} 9. dxc6 {[%clk 0:02:40]}  Qxd1+ {[%clk 0:02:55]} 10. Rxd1 {[%clk 0:02:40]}  Nxc6 {[%clk 0:02:55]} 11. Nd5 {[%clk 0:02:17]}  Nxd5 {[%clk 0:02:55]} 12. Bxd5 {[%clk 0:02:18]}  Bb7 {[%clk 0:02:56]} 13. Bxe4 {[%clk 0:02:18]}  e6 {[%clk 0:02:49]} 14. O-O {[%clk 0:02:11]}  Na5 {[%clk 0:02:48]} 15. Bxb7 {[%clk 0:02:07]}  Nxb7 {[%clk 0:02:49]} 16. Nd4 {[%clk 0:02:05]}  Rc8 {[%clk 0:02:46]} 17. Rfe1 {[%clk 0:02:03]}  Bc5 {[%clk 0:02:43]} 18. Nb3 {[%clk 0:01:48]}  Bb6 {[%clk 0:02:33]} 19. c3 {[%clk 0:01:43]}  Ke7 {[%clk 0:02:32]} 20. Be5 {[%clk 0:01:38]}  f6 {[%clk 0:02:10]} 21. Bd4 {[%clk 0:01:36]}  Rc6 {[%clk 0:02:11]} 22. Rd3 {[%clk 0:01:28]}  Rd8 {[%clk 0:01:59]} 23. Rh3 {[%clk 0:01:20]}  h6 {[%clk 0:01:56]} 24. Rg3 {[%clk 0:01:20]}  Kf7 {[%clk 0:01:55]} 25. h4 {[%clk 0:01:20]}  e5 {[%clk 0:01:54]} 26. Bxb6 {[%clk 0:01:18]}  Rxb6 {[%clk 0:01:54]} 27. Rg4 {[%clk 0:01:04]}  h5 {[%clk 0:01:50]} 28. Rge4 {[%clk 0:01:04]}  Nd6 {[%clk 0:01:50]} 29. Rb4 {[%clk 0:01:05]}  Nc4 {[%clk 0:01:46]} 30. a4 {[%clk 0:01:03]}  Nxb2 {[%clk 0:01:35]} 31. Nc5 {[%clk 0:00:55]}  Nd3 {[%clk 0:00:20]} 32. Rd1 {[%clk 0:00:55]}  Nxb4 {[%clk 0:00:08]} 33. Rxd8 {[%clk 0:00:55]}  Na2 {[%clk 0:00:09]} 34. Rd7+ {[%clk 0:00:52]}  Kg6 {[%clk 0:00:09]} 35. Ra7 {[%clk 0:00:38]}  Nxc3 {[%clk 0:00:07]} 36. a5 {[%clk 0:00:37]}  Rc6 {[%clk 0:00:08]} 37. Nxa6 {[%clk 0:00:37]}  Nd5 {[%clk 0:00:08]} 38. Nb8 {[%clk 0:00:35]}  Rc1+ {[%clk 0:00:08]} 39. Kh2 {[%clk 0:00:36]}  b4 {[%clk 0:00:09]} 40. Rb7 {[%clk 0:00:35]}  Rc2 {[%clk 0:00:06]} 41. a6 {[%clk 0:00:34]}  Rxf2 {[%clk 0:00:04]} 42. a7 {[%clk 0:00:31]}  Ra2 {[%clk 0:00:04]} 43. Nc6 {[%clk 0:00:32]}  Ne3 {[%clk 0:00:02]} 44. Rb8 {[%clk 0:00:31]}  Ng4+ {[%clk 0:00:02]} 45. Kh3 {[%clk 0:00:30]}  Ra3+ {[%clk 0:00:02]} 46. g3 {[%clk 0:00:21]}  Ra2 {[%clk 0:00:03]} 47. Nxe5+ {[%clk 0:00:09]}  fxe5 {[%clk 0:00:02]} 48. Rb6+ {[%clk 0:00:09]}  Kh7 {[%clk 0:00:02]} 49. Rh6+ {[%clk 0:00:05]}  gxh6 {[%clk 0:00:02]} 50. a8=Q {[%clk 0:00:06]}  Rh2# {[%clk 0:00:02]} 0-1